[Event "Live Chess"]
[Site "Chess.com"]
[Date "2023.05.20"]
[Round "-"]
[White "Biranidun"]
[Black "JoshMcK"]
[Result "1-0"]
[WhiteElo "2766"]
[BlackElo "1563"]
[TimeControl "300"]
[EndTime "15:03:24 PDT"]
[Termination "Biranidun won by resignation"]

1. e4 {[%clk 0:04:59.2]} 1... c6 {[%clk 0:04:56.9]} 2. d4 {[%clk 0:04:58.3]}
2... d5 {[%clk 0:04:55.5]} 3. e5 {[%clk 0:04:57.9]} 3... c5 {[%clk 0:04:54.2]}
4. dxc5 {[%clk 0:04:55.2]} 4... e6 {[%clk 0:04:52.9]} 5. a3 {[%clk 0:04:54]}
5... Bxc5 {[%clk 0:04:50.5]} 6. Nf3 {[%clk 0:04:53.6]} 6... Nc6 {[%clk
0:04:47.5]} 7. Bd3 {[%clk 0:04:52.4]} 7... Nge7 {[%clk 0:04:29.6]} 8. b4 {[%clk
0:04:51]} 8... Bb6 {[%clk 0:04:28.6]} 9. Bb2 {[%clk 0:04:47.5]} 9... O-O {[%clk
0:04:24.9]} 10. O-O {[%clk 0:04:46.1]} 10... Bc7 {[%clk 0:04:23.5]} 11. Re1
{[%clk 0:04:44.7]} 11... Nf5 {[%clk 0:04:19.5]} 12. Nbd2 {[%clk 0:04:41.9]}
12... b6 {[%clk 0:04:08]} 13. c4 {[%clk 0:04:41.2]} 13... dxc4 {[%clk
0:04:04.5]} 14. Nxc4 {[%clk 0:04:40.5]} 14... Ncd4 {[%clk 0:04:02.3]} 15. Nxd4
{[%clk 0:04:38.4]} 15... Nxd4 {[%clk 0:04:00.8]} 16. Bxd4 {[%clk 0:04:38.3]}
16... g6 {[%clk 0:03:51.4]} 17. Nd6 {[%clk 0:04:34.9]} 17... Bxd6 {[%clk
0:03:48.2]} 18. exd6 {[%clk 0:04:34.8]} 18... Qxd6 {[%clk 0:03:47.7]} 19. Be5
{[%clk 0:04:33.5]} 19... Qd5 {[%clk 0:03:45.8]} 20. Be4 {[%clk 0:04:28.6]} 20...
Qd7 {[%clk 0:03:43.6]} 21. Bxa8 {[%clk 0:04:26.4]} 21... Qxd1 {[%clk 0:03:38.2]}
22. Raxd1 {[%clk 0:04:26.3]} 22... Ba6 {[%clk 0:03:37.6]} 23. Bc6 {[%clk
0:04:25.4]} 1-0

[Event "Live Chess"]
[Site "Chess.com"]
[Date "2023.05.20"]
[Round "-"]
[White "lightningorderyt"]
[Black "Wild_Tiger"]
[Result "0-1"]
[WhiteElo "519"]
[BlackElo "1075"]
[TimeControl "300"]
[EndTime "15:03:42 PDT"]
[Termination "Wild_Tiger won on time"]

1. d4 {[%clk 0:04:56.5]} 1... Nc6 {[%clk 0:04:57.3]} 2. Nf3 {[%clk 0:04:43.3]}
2... d5 {[%clk 0:04:52.2]} 3. Nc3 {[%clk 0:04:38.4]} 3... Bg4 {[%clk 0:04:51.3]}
4. e3 {[%clk 0:04:27.5]} 4... e5 {[%clk 0:04:42.5]} 5. Be2 {[%clk 0:04:18.3]}
5... e4 {[%clk 0:04:33]} 6. Nd2 {[%clk 0:04:04.5]} 6... Bxe2 {[%clk 0:04:26.8]}
7. Qxe2 {[%clk 0:04:02.8]} 7... Nf6 {[%clk 0:04:24]} 8. O-O {[%clk 0:04:00.4]}
8... Bd6 {[%clk 0:04:23.4]} 9. b3 {[%clk 0:03:54.1]} 9... O-O {[%clk 0:04:22.3]}
10. Bb2 {[%clk 0:03:52.9]} 10... Nb4 {[%clk 0:04:18]} 11. a3 {[%clk 0:03:43.6]}
11... Nxc2 {[%clk 0:04:07.5]} 12. Rac1 {[%clk 0:03:40.9]} 12... Nxa3 {[%clk
0:04:06.1]} 13. Bxa3 {[%clk 0:03:37.4]} 13... Bxa3 {[%clk 0:04:05.5]} 14. Ra1
{[%clk 0:03:35.3]} 14... Bb4 {[%clk 0:04:03]} 15. Na2 {[%clk 0:03:27.1]} 15...
Bd6 {[%clk 0:03:56.5]} 16. f3 {[%clk 0:03:18.4]} 16... Re8 {[%clk 0:03:48.2]}
17. Nc3 {[%clk 0:03:08.9]} 17... exf3 {[%clk 0:03:43.8]} 18. Nxf3 {[%clk
0:03:05.6]} 18... Bf4 {[%clk 0:03:39.5]} 19. Nd1 {[%clk 0:02:27.7]} 19... Ng4
{[%clk 0:03:30.7]} 20. Qb5 {[%clk 0:02:00]} 20... Nxe3 {[%clk 0:03:20.6]} 21.
Nxe3 {[%clk 0:01:57.3]} 21... Rxe3 {[%clk 0:03:00]} 22. Qxb7 {[%clk 0:01:47]}
22... a5 {[%clk 0:02:48.8]} 23. g3 {[%clk 0:01:34.1]} 23... Bh6 {[%clk
0:02:44.3]} 24. Ne5 {[%clk 0:01:20.7]} 24... Rb8 {[%clk 0:02:29.3]} 25. Qc6
{[%clk 0:01:04.8]} 25... Rbxb3 {[%clk 0:02:13.4]} 26. Nxf7 {[%clk 0:01:00.1]}
26... Qe7 {[%clk 0:01:54.7]} 27. Nxh6+ {[%clk 0:00:45.3]} 27... gxh6 {[%clk
0:01:51.4]} 28. Qxd5+ {[%clk 0:00:41.7]} 28... Kh8 {[%clk 0:01:37.5]} 29. Qa8+
{[%clk 0:00:22.1]} 29... Qe8 {[%clk 0:01:32.9]} 30. Qxa5 {[%clk 0:00:18.1]}
30... Rb2 {[%clk 0:01:28.6]} 31. Qd5 {[%clk 0:00:14]} 31... Ree2 {[%clk
0:01:17.2]} 32. Ra8 {[%clk 0:00:13.3]} 32... Rg2+ {[%clk 0:00:58.5]} 33. Kh1
{[%clk 0:00:09.8]} 33... Rxh2+ {[%clk 0:00:56.3]} 34. Kg1 {[%clk 0:00:08.3]}
34... Rbg2+ {[%clk 0:00:39.4]} 35. Qxg2 {[%clk 0:00:05.3]} 35... Rxg2+ {[%clk
0:00:35.3]} 36. Kxg2 {[%clk 0:00:04.8]} 36... Qxa8+ {[%clk 0:00:33.9]} 37. Kh2
{[%clk 0:00:03.3]} 37... Qe4 {[%clk 0:00:29.3]} 38. Rf8+ {[%clk 0:00:01.7]}
38... Kg7 {[%clk 0:00:27.6]} 39. Rc8 {[%clk 0:00:00.1]} 39... c6 {[%clk
0:00:23.4]} 0-1

[Event "Live Chess"]
[Site "Chess.com"]
[Date "2023.05.20"]
[Round "-"]
[White "chessfiction"]
[Black "JanMur7"]
[Result "1-0"]
[WhiteElo "2348"]
[BlackElo "1971"]
[TimeControl "300"]
[EndTime "15:04:02 PDT"]
[Termination "chessfiction won by resignation"]

1. e4 {[%clk 0:04:59.1]} 1... e5 {[%clk 0:04:58.8]} 2. d4 {[%clk 0:04:59]} 2...
Nc6 {[%clk 0:04:58.4]} 3. d5 {[%clk 0:04:58]} 3... Nce7 {[%clk 0:04:57.3]} 4. f4
{[%clk 0:04:57.1]} 4... Ng6 {[%clk 0:04:57.2]} 5. Nf3 {[%clk 0:04:54.4]} 5... d6
{[%clk 0:04:55.5]} 6. f5 {[%clk 0:04:53.4]} 6... N6e7 {[%clk 0:04:52.7]} 7. Bg5
{[%clk 0:04:50.8]} 7... h6 {[%clk 0:04:50.6]} 8. Bh4 {[%clk 0:04:49]} 8... c6
{[%clk 0:04:44.1]} 9. Nc3 {[%clk 0:04:46.8]} 9... Qb6 {[%clk 0:04:42]} 10. Qd2
{[%clk 0:04:42]} 10... g6 {[%clk 0:04:39.3]} 11. Bf2 {[%clk 0:04:38.1]} 11...
gxf5 {[%clk 0:04:36.8]} 12. Bxb6 {[%clk 0:04:36.3]} 1-0

[Event "Live Chess"]
[Site "Chess.com"]
[Date "2023.05.20"]
[Round "-"]
[White "HoarseyHorsey"]
[Black "TheSmoulderingMaster"]
[Result "0-1"]
[WhiteElo "1419"]
[BlackElo "1711"]
[TimeControl "300"]
[EndTime "15:04:14 PDT"]
[Termination "TheSmoulderingMaster won by resignation"]

1. d4 {[%clk 0:04:58]} 1... Nf6 {[%clk 0:04:58.6]} 2. c4 {[%clk 0:04:57]} 2...
d6 {[%clk 0:04:58.1]} 3. Nc3 {[%clk 0:04:54.9]} 3... g6 {[%clk 0:04:57.3]} 4. f3
{[%clk 0:04:52.9]} 4... Bg7 {[%clk 0:04:56.5]} 5. e4 {[%clk 0:04:52]} 5... O-O
{[%clk 0:04:55.7]} 6. Nge2 {[%clk 0:04:45.9]} 6... c6 {[%clk 0:04:54.6]} 7. Ng3
{[%clk 0:04:43.6]} 7... a6 {[%clk 0:04:53.2]} 8. Be3 {[%clk 0:04:42.5]} 8... b5
{[%clk 0:04:52]} 9. Qd2 {[%clk 0:04:40]} 9... Bb7 {[%clk 0:04:49.1]} 10. Be2
{[%clk 0:04:35.4]} 10... Qa5 {[%clk 0:04:46.8]} 11. O-O {[%clk 0:04:25.7]} 11...
Rd8 {[%clk 0:04:43.7]} 12. a3 {[%clk 0:04:20.5]} 12... Nbd7 {[%clk 0:04:42.7]}
13. b4 {[%clk 0:04:18.3]} 13... Qc7 {[%clk 0:04:41.4]} 14. Bh6 {[%clk
0:04:14.4]} 14... Bh8 {[%clk 0:04:40.1]} 15. f4 {[%clk 0:04:02.9]} 15... c5
{[%clk 0:04:36.3]} 16. bxc5 {[%clk 0:03:53.8]} 16... dxc5 {[%clk 0:04:35.6]} 17.
d5 {[%clk 0:03:49.9]} 17... b4 {[%clk 0:04:32.4]} 18. axb4 {[%clk 0:03:47.7]}
18... cxb4 {[%clk 0:04:31.8]} 19. Na4 {[%clk 0:03:37.2]} 19... Nc5 {[%clk
0:04:27.4]} 20. Kh1 {[%clk 0:03:29.9]} 20... Ncxe4 {[%clk 0:04:23.7]} 21. Qe3
{[%clk 0:03:17.3]} 21... Nxg3+ {[%clk 0:04:16.1]} 22. hxg3 {[%clk 0:03:10.9]}
22... Bc8 {[%clk 0:04:12.9]} 23. Rac1 {[%clk 0:03:04.5]} 23... Bg4 {[%clk
0:04:10.9]} 24. Bf3 {[%clk 0:02:55.2]} 24... Bxf3 {[%clk 0:04:09.3]} 25. gxf3
{[%clk 0:02:55.1]} 25... Qd7 {[%clk 0:04:06.9]} 26. Kg2 {[%clk 0:02:47]} 26...
Qxa4 {[%clk 0:04:04.5]} 27. Qxe7 {[%clk 0:02:41.5]} 27... Re8 {[%clk 0:04:02.1]}
28. Qc5 {[%clk 0:02:33.6]} 28... b3 {[%clk 0:03:56.3]} 29. Ra1 {[%clk 0:02:22]}
29... Re2+ {[%clk 0:03:52.3]} 30. Kh3 {[%clk 0:02:20.4]} 30... Qd7+ {[%clk
0:03:49.4]} 31. g4 {[%clk 0:02:17.3]} 31... b2 {[%clk 0:03:45.8]} 32. Rab1
{[%clk 0:02:11.2]} 32... a5 {[%clk 0:03:37.4]} 33. Kg3 {[%clk 0:01:40.7]} 33...
a4 {[%clk 0:03:33.9]} 34. Rf2 {[%clk 0:01:38.3]} 34... Rxf2 {[%clk 0:03:28.6]}
35. Kxf2 {[%clk 0:01:38.2]} 35... a3 {[%clk 0:03:27.6]} 36. Kg3 {[%clk
0:01:22.9]} 36... Qxg4+ {[%clk 0:03:22]} 37. fxg4 {[%clk 0:01:21.1]} 37... Ne4+
{[%clk 0:03:21.3]} 38. Kf3 {[%clk 0:01:15.6]} 38... Nxc5 {[%clk 0:03:20.3]} 0-1

[Event "Live Chess"]
[Site "Chess.com"]
[Date "2023.05.20"]
[Round "-"]
[White "chrisbradgate"]
[Black "Olisingapore"]
[Result "0-1"]
[WhiteElo "861"]
[BlackElo "1871"]
[TimeControl "300"]
[EndTime "15:04:23 PDT"]
[Termination "Olisingapore won on time"]

1. d4 {[%clk 0:04:58.6]} 1... d5 {[%clk 0:04:57.3]} 2. Bf4 {[%clk 0:04:57.6]}
2... c5 {[%clk 0:04:55.2]} 3. c3 {[%clk 0:04:55.1]} 3... Nf6 {[%clk 0:04:54.5]}
4. e3 {[%clk 0:04:53.7]} 4... Nc6 {[%clk 0:04:51.7]} 5. Nf3 {[%clk 0:04:47.8]}
5... Bf5 {[%clk 0:04:47.9]} 6. Bb5 {[%clk 0:04:45.5]} 6... Qd7 {[%clk
0:04:44.5]} 7. O-O {[%clk 0:04:42.3]} 7... e6 {[%clk 0:04:41.3]} 8. Ne5 {[%clk
0:04:40.4]} 8... Qc8 {[%clk 0:04:34.4]} 9. Nxc6 {[%clk 0:04:20.4]} 9... bxc6
{[%clk 0:04:31.2]} 10. Ba4 {[%clk 0:04:17.3]} 10... Be7 {[%clk 0:04:18.2]} 11.
f3 {[%clk 0:04:15]} 11... Qa6 {[%clk 0:04:02.9]} 12. Nd2 {[%clk 0:04:07]} 12...
cxd4 {[%clk 0:03:53.3]} 13. exd4 {[%clk 0:03:58]} 13... Bd3 {[%clk 0:03:49]} 14.
Rf2 {[%clk 0:03:56.3]} 14... Nh5 {[%clk 0:03:45.3]} 15. Be5 {[%clk 0:03:44.7]}
15... O-O {[%clk 0:03:36.8]} 16. f4 {[%clk 0:03:30.8]} 16... f6 {[%clk
0:03:27.1]} 17. Qxh5 {[%clk 0:03:11.1]} 17... fxe5 {[%clk 0:03:24.1]} 18. Rf3
{[%clk 0:03:06.8]} 18... Rf5 {[%clk 0:03:12.7]} 19. Qh3 {[%clk 0:02:57.4]} 19...
exf4 {[%clk 0:03:06]} 20. Rxd3 {[%clk 0:02:51.6]} 20... Qxa4 {[%clk 0:03:02.2]}
21. Nf3 {[%clk 0:02:40]} 21... Qc2 {[%clk 0:02:57.9]} 22. Rd2 {[%clk 0:02:31.8]}
22... Qe4 {[%clk 0:02:48]} 23. Re1 {[%clk 0:02:13.9]} 23... Raf8 {[%clk
0:02:06.2]} 24. Rxe4 {[%clk 0:02:11.3]} 24... dxe4 {[%clk 0:02:04.7]} 25. Ne5
{[%clk 0:01:45.7]} 25... f3 {[%clk 0:02:00.9]} 26. Nxf3 {[%clk 0:01:11.4]} 26...
exf3 {[%clk 0:02:00.8]} 27. Rf2 {[%clk 0:00:54.9]} 27... fxg2 {[%clk 0:01:49.1]}
28. Rxf5 {[%clk 0:00:46.3]} 28... Rxf5 {[%clk 0:01:49]} 29. Qe3 {[%clk
0:00:28.7]} 29... Kf7 {[%clk 0:01:44.6]} 30. Qh3 {[%clk 0:00:10.7]} 30... h5
{[%clk 0:01:38.9]} 0-1

[Event "Live Chess"]
[Site "Chess.com"]
[Date "2023.05.20"]
[Round "-"]
[White "terrub10"]
[Black "JoeRoot66"]
[Result "0-1"]
[WhiteElo "570"]
[BlackElo "1910"]
[TimeControl "300"]
[EndTime "15:04:28 PDT"]
[Termination "JoeRoot66 won by checkmate"]

1. d4 {[%clk 0:04:58.6]} 1... e5 {[%clk 0:04:59.3]} 2. Nf3 {[%clk 0:04:54.7]}
2... e4 {[%clk 0:04:58.2]} 3. Ne5 {[%clk 0:04:48.9]} 3... Nc6 {[%clk 0:04:53.2]}
4. Nxc6 {[%clk 0:04:47]} 4... bxc6 {[%clk 0:04:53.1]} 5. e3 {[%clk 0:04:44.3]}
5... d5 {[%clk 0:04:53]} 6. Nc3 {[%clk 0:04:41.5]} 6... Nf6 {[%clk 0:04:52.3]}
7. Bd2 {[%clk 0:04:29.2]} 7... c5 {[%clk 0:04:50.9]} 8. Bc1 {[%clk 0:04:16.1]}
8... cxd4 {[%clk 0:04:49.8]} 9. exd4 {[%clk 0:04:12]} 9... c5 {[%clk 0:04:48]}
10. dxc5 {[%clk 0:04:10.4]} 10... Bxc5 {[%clk 0:04:47.9]} 11. Bg5 {[%clk
0:04:05.4]} 11... Qb6 {[%clk 0:04:43.4]} 12. Bxf6 {[%clk 0:04:00.5]} 12... Bxf2+
{[%clk 0:04:41.1]} 13. Ke2 {[%clk 0:03:57.9]} 13... Qe3# {[%clk 0:04:41]} 0-1

[Event "Live Chess"]
[Site "Chess.com"]
[Date "2023.05.20"]
[Round "-"]
[White "GMHarry-youtube"]
[Black "jk0110"]
[Result "1-0"]
[WhiteElo "2021"]
[BlackElo "1118"]
[TimeControl "300"]
[EndTime "15:04:47 PDT"]
[Termination "GMHarry-youtube won by checkmate"]

1. e4 {[%clk 0:04:58.7]} 1... e5 {[%clk 0:04:54]} 2. Nf3 {[%clk 0:04:55.6]} 2...
Nc6 {[%clk 0:04:53.3]} 3. Bc4 {[%clk 0:04:50.5]} 3... f5 {[%clk 0:04:51.1]} 4.
d3 {[%clk 0:04:36]} 4... Bc5 {[%clk 0:04:46.5]} 5. exf5 {[%clk 0:04:34.4]} 5...
d5 {[%clk 0:04:41]} 6. Bb5 {[%clk 0:04:28.1]} 6... Bxf5 {[%clk 0:04:17.4]} 7.
O-O {[%clk 0:04:23]} 7... Bd6 {[%clk 0:04:06.8]} 8. Re1 {[%clk 0:04:13.7]} 8...
Qe7 {[%clk 0:03:51.3]} 9. Bf4 {[%clk 0:04:09.4]} 9... O-O-O {[%clk 0:03:17.7]}
10. Bxc6 {[%clk 0:04:06.4]} 10... bxc6 {[%clk 0:03:15.3]} 11. Nxe5 {[%clk
0:04:05.3]} 11... Re8 {[%clk 0:02:54.3]} 12. d4 {[%clk 0:04:03.2]} 12... Nf6
{[%clk 0:02:49.9]} 13. Qe2 {[%clk 0:04:01.8]} 13... Ng4 {[%clk 0:02:25.6]} 14.
Qa6+ {[%clk 0:03:59.9]} 14... Kb8 {[%clk 0:02:18.5]} 15. Nxc6+ {[%clk
0:03:58.7]} 15... Ka8 {[%clk 0:02:11.4]} 16. Qxa7# {[%clk 0:03:58.6]} 1-0

[Event "Live Chess"]
[Site "Chess.com"]
[Date "2023.05.20"]
[Round "-"]
[White "lateforthesky"]
[Black "Horseymobile"]
[Result "1-0"]
[WhiteElo "2103"]
[BlackElo "1252"]
[TimeControl "300"]
[EndTime "15:04:49 PDT"]
[Termination "lateforthesky won by checkmate"]

1. e4 {[%clk 0:04:56.5]} 1... c6 {[%clk 0:04:58.9]} 2. Nf3 {[%clk 0:04:54.1]}
2... d5 {[%clk 0:04:58.2]} 3. exd5 {[%clk 0:04:53.3]} 3... cxd5 {[%clk
0:04:57.6]} 4. Ne5 {[%clk 0:04:52.5]} 4... g6 {[%clk 0:04:53.9]} 5. d4 {[%clk
0:04:50]} 5... Bg7 {[%clk 0:04:52.4]} 6. Bb5+ {[%clk 0:04:48.7]} 6... Nd7 {[%clk
0:04:48.5]} 7. O-O {[%clk 0:04:27.6]} 7... a6 {[%clk 0:04:42.5]} 8. Nxd7 {[%clk
0:04:25.8]} 8... Bxd7 {[%clk 0:04:40.7]} 9. Bd3 {[%clk 0:04:23.8]} 9... Nf6
{[%clk 0:04:38.4]} 10. c3 {[%clk 0:04:22.2]} 10... O-O {[%clk 0:04:36.5]} 11.
Bg5 {[%clk 0:04:17.5]} 11... Re8 {[%clk 0:04:21]} 12. Re1 {[%clk 0:04:12.9]}
12... Qb6 {[%clk 0:04:08.4]} 13. Qe2 {[%clk 0:03:54.2]} 13... h6 {[%clk
0:03:31.7]} 14. Bc1 {[%clk 0:03:49.4]} 14... Ng4 {[%clk 0:03:11.9]} 15. h3
{[%clk 0:03:40.6]} 15... Nf6 {[%clk 0:03:01.4]} 16. Nd2 {[%clk 0:03:39.5]} 16...
Nh7 {[%clk 0:02:41]} 17. Nf3 {[%clk 0:03:35.2]} 17... Qd6 {[%clk 0:02:18.8]} 18.
Ne5 {[%clk 0:03:25.3]} 18... Rad8 {[%clk 0:01:53.7]} 19. Bf4 {[%clk 0:03:20]}
19... Qf6 {[%clk 0:01:47.1]} 20. Qd2 {[%clk 0:03:12.2]} 20... g5 {[%clk
0:01:41.6]} 21. Bg3 {[%clk 0:03:10.9]} 21... Bf5 {[%clk 0:01:26]} 22. Ng4 {[%clk
0:02:54.9]} 22... Bxg4 {[%clk 0:01:23.9]} 23. hxg4 {[%clk 0:02:53.3]} 23... Nf8
{[%clk 0:01:20.5]} 24. Be5 {[%clk 0:02:48.2]} 24... Qc6 {[%clk 0:01:11.8]} 25.
Bxg7 {[%clk 0:02:43.5]} 25... Kxg7 {[%clk 0:01:11.7]} 26. Re2 {[%clk 0:02:36.3]}
26... Ne6 {[%clk 0:01:08.1]} 27. g3 {[%clk 0:02:34.6]} 27... Qd6 {[%clk
0:01:03.4]} 28. Rae1 {[%clk 0:02:31.5]} 28... h5 {[%clk 0:00:56.3]} 29. Rxe6
{[%clk 0:02:27.9]} 29... fxe6 {[%clk 0:00:54.1]} 30. Qxg5+ {[%clk 0:02:26.7]}
30... Kf8 {[%clk 0:00:53.1]} 31. Qh6+ {[%clk 0:02:18]} 31... Kf7 {[%clk
0:00:51.8]} 32. Qxh5+ {[%clk 0:02:15.3]} 32... Kf6 {[%clk 0:00:50.8]} 33. Qg6#
{[%clk 0:02:11.3]} 1-0

[Event "Live Chess"]
[Site "Chess.com"]
[Date "2023.05.20"]
[Round "-"]
[White "Duke_of_Bebington"]
[Black "MarkLim1"]
[Result "1-0"]
[WhiteElo "1588"]
[BlackElo "1656"]
[TimeControl "300"]
[EndTime "15:05:00 PDT"]
[Termination "Duke_of_Bebington won by resignation"]

1. e4 {[%clk 0:04:58.3]} 1... e6 {[%clk 0:04:58.5]} 2. d4 {[%clk 0:04:56.4]}
2... d5 {[%clk 0:04:57.6]} 3. Nd2 {[%clk 0:04:53.2]} 3... c5 {[%clk 0:04:56.3]}
4. c3 {[%clk 0:04:40.7]} 4... cxd4 {[%clk 0:04:55]} 5. cxd4 {[%clk 0:04:39.2]}
5... dxe4 {[%clk 0:04:54.3]} 6. Nxe4 {[%clk 0:04:37.5]} 6... Nf6 {[%clk
0:04:53.7]} 7. Bd3 {[%clk 0:04:33.1]} 7... Bb4+ {[%clk 0:04:52.4]} 8. Kf1 {[%clk
0:04:30.1]} 8... O-O {[%clk 0:04:50.2]} 9. Nf3 {[%clk 0:04:22.8]} 9... Nc6
{[%clk 0:04:49.3]} 10. Be3 {[%clk 0:04:20.5]} 10... Bd7 {[%clk 0:04:45.8]} 11.
a3 {[%clk 0:04:15.2]} 11... Be7 {[%clk 0:04:44.4]} 12. g3 {[%clk 0:04:08.6]}
12... Qc8 {[%clk 0:04:38.4]} 13. h4 {[%clk 0:03:57.7]} 13... Ng4 {[%clk
0:04:35.8]} 14. Kg2 {[%clk 0:03:52.8]} 14... Nxe3+ {[%clk 0:04:34.1]} 15. fxe3
{[%clk 0:03:52.7]} 15... e5 {[%clk 0:04:29.3]} 16. d5 {[%clk 0:03:41.4]} 16...
Nd8 {[%clk 0:04:20.5]} 17. Nxe5 {[%clk 0:03:35.8]} 17... f5 {[%clk 0:04:17.7]}
18. Rc1 {[%clk 0:03:25.8]} 18... Qxc1 {[%clk 0:04:10.1]} 19. Qxc1 {[%clk
0:03:23.7]} 19... fxe4 {[%clk 0:04:09.4]} 20. Nxd7 {[%clk 0:03:16.5]} 1-0

[Event "Live Chess"]
[Site "Chess.com"]
[Date "2023.05.20"]
[Round "-"]
[White "nigelst"]
[Black "Nazar_777"]
[Result "0-1"]
[WhiteElo "1824"]
[BlackElo "1608"]
[TimeControl "300"]
[EndTime "15:05:03 PDT"]
[Termination "Nazar_777 won on time"]

1. e4 {[%clk 0:04:57.8]} 1... e6 {[%clk 0:04:50.6]} 2. d4 {[%clk 0:04:55.7]}
2... a6 {[%clk 0:04:50.1]} 3. Nc3 {[%clk 0:04:50.3]} 3... h5 {[%clk 0:04:49]} 4.
f4 {[%clk 0:04:49.1]} 4... c5 {[%clk 0:04:48.2]} 5. Nf3 {[%clk 0:04:46.1]} 5...
cxd4 {[%clk 0:04:46.7]} 6. Nxd4 {[%clk 0:04:42.4]} 6... Nc6 {[%clk 0:04:45.9]}
7. Nf3 {[%clk 0:04:40.9]} 7... Be7 {[%clk 0:04:44.5]} 8. Bd3 {[%clk 0:04:38.7]}
8... Qc7 {[%clk 0:04:43.5]} 9. O-O {[%clk 0:04:35.2]} 9... b5 {[%clk 0:04:42.6]}
10. e5 {[%clk 0:04:27.2]} 10... Nh6 {[%clk 0:04:40.8]} 11. h3 {[%clk 0:04:24.2]}
11... Bb7 {[%clk 0:04:35.7]} 12. Be4 {[%clk 0:04:03.5]} 12... g6 {[%clk
0:04:32.5]} 13. Be3 {[%clk 0:03:47.3]} 13... Nf5 {[%clk 0:04:28.6]} 14. Bf2
{[%clk 0:03:37.9]} 14... h4 {[%clk 0:04:26.6]} 15. a3 {[%clk 0:03:21.5]} 15...
b4 {[%clk 0:04:23]} 16. axb4 {[%clk 0:03:19.3]} 16... Nxb4 {[%clk 0:04:20.8]}
17. Bxb7 {[%clk 0:03:08.3]} 17... Qxb7 {[%clk 0:04:19]} 18. Nd4 {[%clk
0:03:01.7]} 18... Qc7 {[%clk 0:04:16]} 19. Nxf5 {[%clk 0:02:55.3]} 19... gxf5
{[%clk 0:04:14.6]} 20. Qf3 {[%clk 0:02:53.5]} 20... Rc8 {[%clk 0:04:11]} 21.
Rac1 {[%clk 0:02:47.7]} 21... Rg8 {[%clk 0:04:05]} 22. Rfd1 {[%clk 0:02:28.7]}
22... Bc5 {[%clk 0:04:01.9]} 23. Kh1 {[%clk 0:02:00.3]} 23... Bxf2 {[%clk
0:03:58.1]} 24. Qxf2 {[%clk 0:01:59.2]} 24... Qc6 {[%clk 0:03:57.1]} 25. Rd6
{[%clk 0:01:45.2]} 25... Qb7 {[%clk 0:03:48.8]} 26. Rb6 {[%clk 0:01:27.5]} 26...
Qa8 {[%clk 0:03:18.5]} 27. Rxb4 {[%clk 0:01:24.6]} 27... Rg3 {[%clk 0:03:17.1]}
28. Rd4 {[%clk 0:01:16.3]} 28... Rxh3+ {[%clk 0:03:10.8]} 29. Kg1 {[%clk
0:01:13.9]} 29... Rg3 {[%clk 0:03:06.9]} 30. Qd2 {[%clk 0:01:08.5]} 30... Qa7
{[%clk 0:02:55]} 31. Kh2 {[%clk 0:00:49.3]} 31... Qb7 {[%clk 0:02:50.5]} 32. Rd1
{[%clk 0:00:36.1]} 32... Rd8 {[%clk 0:02:48.1]} 33. Ne2 {[%clk 0:00:19.4]} 33...
Rg4 {[%clk 0:02:43.6]} 34. Ng1 {[%clk 0:00:16.4]} 34... f6 {[%clk 0:02:37.5]}
35. exf6 {[%clk 0:00:13.8]} 35... d5 {[%clk 0:02:35.3]} 36. Nf3 {[%clk
0:00:12.4]} 36... Qc7 {[%clk 0:02:26.1]} 37. f7+ {[%clk 0:00:11.7]} 37... Kxf7
{[%clk 0:02:24.1]} 38. Ne5+ {[%clk 0:00:10.8]} 38... Kf6 {[%clk 0:02:19.1]} 39.
Nxg4+ {[%clk 0:00:10.3]} 39... fxg4 {[%clk 0:02:18.1]} 40. Qe2 {[%clk
0:00:07.7]} 40... g3+ {[%clk 0:02:15.5]} 41. Kg1 {[%clk 0:00:05.4]} 41... Qb6
{[%clk 0:02:12.9]} 42. Qe5+ {[%clk 0:00:03.7]} 42... Ke7 {[%clk 0:02:10.2]} 0-1